[Event "IV Elllobregat Open Chess Tmnt"]
[Site "Sant Boi de Llobregat, Spain"]
[Date "2023.11.30"]
[Round "1.39"]
[White "Ohler, Julius"]
[Black "Szpar, Milosz"]
[Result "1/2-1/2"]
[TimeControl "90min/40moves + 15min/end + 30sec from move 1"]
[WhiteFideId "16238982"]
[BlackFideId "1184989"]
[WhiteElo "2273"]
[BlackElo "2485"]

1. d4 {[%clk 01:30:56]} {[%emt 00:00:03]} d5 {[%clk 01:30:54]} {[%emt
00:00:06]} 2. c4 {[%clk 01:31:21]} {[%emt 00:00:06]} e6 {[%clk 01:31:20]}
{[%emt 00:00:04]} 3. Nc3 {[%clk 01:31:46]} {[%emt 00:00:06]} Nf6 {[%clk
01:31:22]} {[%emt 00:00:27]} 4. Bg5 {[%clk 01:32:09]} {[%emt 00:00:06]} c5
{[%clk 01:31:26]} {[%emt 00:00:25]} 5. cxd5 {[%clk 01:31:08]} {[%emt 00:01:34]}
cxd4 {[%clk 01:31:50]} {[%emt 00:00:06]} 6. Qxd4 {[%clk 01:29:44]} {[%emt
00:01:53]} Be7 {[%clk 01:32:11]} {[%emt 00:00:08]} 7. Nf3 {[%clk 01:22:11]}
{[%emt 00:08:04]} exd5 {[%clk 01:32:22]} {[%emt 00:00:20]} 8. e3 {[%clk
01:19:36]} {[%emt 00:03:05]} O-O {[%clk 01:32:33]} {[%emt 00:00:19]} 9. Be2
{[%clk 01:17:58]} {[%emt 00:02:08]} h6 {[%clk 01:32:46]} {[%emt 00:00:16]} 10.
Bh4 {[%clk 01:16:26]} {[%emt 00:02:02]} Be6 {[%clk 01:32:55]} {[%emt 00:00:22]}
11. O-O {[%clk 01:16:18]} {[%emt 00:00:37]} Nc6 {[%clk 01:33:02]} {[%emt
00:00:23]} 12. Qa4 {[%clk 01:15:48]} {[%emt 00:01:00]} a6 {[%clk 01:26:22]}
{[%emt 00:07:10]} 13. Nd4 {[%clk 01:07:34]} {[%emt 00:08:44]} Nxd4 {[%clk
01:22:02]} {[%emt 00:04:50]} 14. Qxd4 {[%clk 01:07:47]} {[%emt 00:00:18]} Rc8
{[%clk 01:21:29]} {[%emt 00:01:02]} 15. Rfd1 {[%clk 01:05:39]} {[%emt
00:02:38]} b5 {[%clk 01:14:49]} {[%emt 00:07:10]} 16. Rac1 {[%clk 00:54:47]}
{[%emt 00:11:22]} Qa5 {[%clk 01:02:32]} {[%emt 00:12:47]} 17. a3 {[%clk
00:52:50]} {[%emt 00:02:27]} Rfd8 {[%clk 01:00:55]} {[%emt 00:02:07]} 18. h3
{[%clk 00:45:13]} {[%emt 00:08:08]} Rc7 {[%clk 00:53:43]} {[%emt 00:07:41]} 19.
Bg3 {[%clk 00:42:20]} {[%emt 00:03:23]} Rb7 {[%emt 00:10:03]} 20. Qd2 {[%clk
00:37:23]} b4 {[%clk 00:40:33]} {[%emt 00:09:35]} 21. axb4 {[%clk 00:37:42]}
{[%emt 00:00:11]} Rxb4 {[%clk 00:40:09]} {[%emt 00:00:53]} 22. Ra1 {[%clk
00:31:26]} {[%emt 00:06:47]} Qb6 {[%clk 00:38:20]} {[%emt 00:02:18]} 23. Rxa6
{[%clk 00:31:24]} {[%emt 00:00:31]} Qb7 {[%clk 00:38:44]} {[%emt 00:00:06]} 24.
Raa1 {[%clk 00:27:04]} {[%emt 00:04:51]} Rxb2 {[%clk 00:28:54]} {[%emt
00:10:20]} 25. Rab1 {[%clk 00:26:23]} {[%emt 00:01:11]} Rb4 {[%clk 00:27:20]}
{[%emt 00:02:04]} 26. Rxb4 {[%clk 00:25:24]} {[%emt 00:01:29]} Qxb4 {[%clk
00:27:35]} {[%emt 00:00:15]} 27. Bf3 {[%clk 00:24:57]} {[%emt 00:00:57]} Qc4
{[%clk 00:24:30]} {[%emt 00:03:34]} 28. Qd3 {[%clk 00:22:37]} {[%emt 00:02:51]}
Qc8 {[%clk 00:23:35]} {[%emt 00:01:25]} 29. Be5 {[%clk 00:20:55]} {[%emt
00:02:12]} Nd7 {[%clk 00:10:14]} {[%emt 00:13:50]} 30. Nxd5 {[%clk 00:16:03]}
{[%emt 00:05:23]} Bxd5 {[%clk 00:08:41]} {[%emt 00:02:04]} 31. Qxd5 {[%clk
00:16:28]} {[%emt 00:00:04]} Nxe5 {[%clk 00:08:44]} {[%emt 00:00:27]} 32. Qxe5
{[%clk 00:16:53]} {[%emt 00:00:06]} Bf6 {[%clk 00:08:02]} {[%emt 00:01:10]} 33.
Rxd8+ {[%clk 00:17:08]} {[%emt 00:00:15]} Qxd8 {[%clk 00:08:27]} {[%emt
00:00:05]} 34. Qb5 {[%clk 00:17:18]} {[%emt 00:00:21]} g6 {[%clk 00:07:56]}
{[%emt 00:01:01]} 35. Bd5 {[%clk 00:17:21]} {[%emt 00:00:28]} h5 {[%clk
00:07:39]} {[%emt 00:00:45]} 36. Bb3 {[%clk 00:17:29]} {[%emt 00:00:23]} h4
{[%clk 00:07:01]} {[%emt 00:01:08]} 37. Qb7 {[%clk 00:17:03]} {[%emt 00:00:56]}
Qe7 {[%clk 00:07:16]} {[%emt 00:00:15]} 38. Qd5 {[%clk 00:17:17]} {[%emt
00:00:16]} Kg7 {[%clk 00:07:32]} {[%emt 00:00:13]} 39. Kf1 {[%clk 00:16:57]}
{[%emt 00:00:50]} Be5 {[%clk 00:06:45]} {[%emt 00:01:17]} 40. f4 {[%clk
00:31:33]} {[%emt 00:00:55]} Bc7 {[%clk 00:21:23]} {[%emt 00:00:51]} 41. Ke2
{[%clk 00:31:47]} {[%emt 00:00:17]} Qf6 {[%clk 00:20:53]} {[%emt 00:00:59]} 42.
Kf3 {[%clk 00:31:40]} {[%emt 00:00:38]} Bb6 {[%clk 00:20:18]} {[%emt 00:01:05]}
43. Qb7 {[%clk 00:30:51]} {[%emt 00:01:19]} Bc5 {[%clk 00:20:16]} {[%emt
00:00:30]} 44. Qc7 {[%clk 00:30:22]} {[%emt 00:01:01]} 1/2-1/2

[Event "IV Elllobregat Open Chess Tmnt"]
[Site "Sant Boi de Llobregat, Spain"]
[Date "2023.11.30"]
[Round "1.40"]
[White "Khademalsharieh, Sarasadat"]
[Black "Amador Garcia, Ismael"]
[Result "1-0"]
[TimeControl "90min/40moves + 15min/end + 30sec from move 1"]
[WhiteFideId "12512214"]
[BlackFideId "32040920"]
[WhiteElo "2481"]
[BlackElo "2273"]

1. d4 {[%clk 01:30:56]} {[%emt 00:00:03]} Nf6 {[%clk 01:30:49]} {[%emt
00:00:11]} 2. c4 {[%clk 01:31:16]} {[%emt 00:00:10]} e6 {[%clk 01:31:14]}
{[%emt 00:00:05]} 3. Nc3 {[%clk 01:31:34]} {[%emt 00:00:12]} Bb4 {[%clk
01:31:36]} {[%emt 00:00:07]} 4. e3 {[%clk 01:31:32]} {[%emt 00:00:33]} O-O
{[%clk 01:31:58]} {[%emt 00:00:07]} 5. Bd2 {[%clk 01:31:30]} {[%emt 00:00:33]}
d5 {[%clk 01:32:16]} {[%emt 00:00:12]} 6. Nf3 {[%clk 01:31:39]} {[%emt
00:00:21]} b6 {[%clk 01:32:39]} {[%emt 00:00:07]} 7. cxd5 {[%clk 01:31:03]}
{[%emt 00:01:07]} exd5 {[%clk 01:33:06]} {[%emt 00:00:02]} 8. Rc1 {[%clk
01:31:12]} {[%emt 00:00:22]} Re8 {[%clk 01:32:35]} {[%emt 00:01:00]} 9. Bd3
{[%clk 01:30:52]} {[%emt 00:00:51]} Ba6 {[%clk 01:31:06]} {[%emt 00:01:58]} 10.
Bxa6 {[%clk 01:27:17]} {[%emt 00:04:05]} Nxa6 {[%clk 01:31:34]} {[%emt
00:00:02]} 11. Ne5 {[%clk 01:20:27]} {[%emt 00:07:20]} Bd6 {[%clk 01:17:19]}
{[%emt 00:14:45]} 12. f4 {[%clk 01:10:10]} {[%emt 00:10:47]} c5 {[%clk
01:06:08]} {[%emt 00:11:40]} 13. O-O {[%clk 01:09:27]} {[%emt 00:01:14]} Nc7
{[%clk 01:02:45]} {[%emt 00:03:53]} 14. Be1 {[%clk 01:09:34]} {[%emt 00:00:23]}
Ne4 {[%clk 00:56:44]} {[%emt 00:06:31]} 15. Nxe4 {[%clk 00:57:46]} {[%emt
00:12:19]} dxe4 {[%clk 00:55:47]} {[%emt 00:01:25]} 16. Qb3 {[%clk 00:56:15]}
{[%emt 00:02:03]} Bxe5 {[%clk 00:39:03]} {[%emt 00:17:13]} 17. fxe5 {[%clk
00:56:23]} {[%emt 00:00:22]} Qd5 {[%clk 00:37:56]} {[%emt 00:01:37]} 18. dxc5
{[%clk 00:55:58]} {[%emt 00:00:55]} bxc5 {[%clk 00:37:02]} {[%emt 00:01:24]} 19.
Qxd5 {[%clk 00:49:49]} {[%emt 00:06:40]} Nxd5 {[%clk 00:36:21]} {[%emt
00:01:10]} 20. Rxc5 {[%clk 00:50:06]} {[%emt 00:00:13]} Nxe3 {[%clk 00:35:08]}
{[%emt 00:01:43]} 21. Rf4 {[%clk 00:50:29]} {[%emt 00:00:08]} Nd1 {[%clk
00:15:20]} {[%emt 00:20:17]} 22. b4 {[%clk 00:38:54]} {[%emt 00:12:06]} Rec8
{[%clk 00:11:57]} {[%emt 00:03:53]} 23. Rxc8+ {[%clk 00:34:48]} {[%emt
00:04:36]} Rxc8 {[%clk 00:12:25]} {[%emt 00:00:01]} 24. Rxe4 {[%clk 00:35:11]}
{[%emt 00:00:08]} Rc1 {[%clk 00:12:43]} {[%emt 00:00:11]} 25. Bd2 {[%clk
00:32:11]} {[%emt 00:03:30]} Rc2 {[%clk 00:11:06]} {[%emt 00:02:07]} 26. Rd4
{[%clk 00:32:30]} {[%emt 00:00:12]} h6 {[%clk 00:10:10]} {[%emt 00:01:26]} 27.
a4 {[%clk 00:23:48]} {[%emt 00:09:12]} Nb2 {[%clk 00:10:21]} {[%emt 00:00:19]}
28. b5 {[%clk 00:21:55]} {[%emt 00:02:23]} Nc4 {[%clk 00:10:27]} {[%emt
00:00:23]} 29. Bf4 {[%clk 00:14:12]} {[%emt 00:08:13]} g5 {[%clk 00:10:55]}
{[%emt 00:00:02]} 30. Bg3 {[%clk 00:14:36]} {[%emt 00:00:06]} h5 {[%clk
00:08:41]} {[%emt 00:02:44]} 31. Re4 {[%clk 00:14:10]} {[%emt 00:00:56]} Nd2
{[%clk 00:06:57]} {[%emt 00:02:14]} 32. Re2 {[%clk 00:06:43]} {[%emt 00:07:58]}
h4 {[%clk 00:07:20]} {[%emt 00:00:06]} 33. Be1 {[%clk 00:04:36]} {[%emt
00:02:38]} Nf3+ {[%clk 00:07:36]} {[%emt 00:00:13]} 34. Kf2 {[%clk 00:05:02]}
{[%emt 00:00:05]} Nxe1 {[%clk 00:08:01]} {[%emt 00:00:04]} 35. Kxe1 {[%clk
00:05:26]} {[%emt 00:00:06]} Rc1+ {[%clk 00:08:27]} {[%emt 00:00:05]} 36. Kf2
{[%clk 00:05:34]} {[%emt 00:00:22]} Ra1 {[%clk 00:08:50]} {[%emt 00:00:06]} 37.
Re4 {[%clk 00:04:51]} {[%emt 00:01:13]} Kg7 {[%clk 00:05:03]} {[%emt 00:04:18]}
38. h3 {[%clk 00:02:04]} {[%emt 00:03:17]} Kg6 {[%clk 00:05:10]} {[%emt
00:00:23]} 39. e6 {[%clk 00:02:29]} {[%emt 00:00:05]} fxe6 {[%clk 00:05:29]}
{[%emt 00:00:11]} 40. Rxe6+ {[%clk 00:17:53]} {[%emt 00:00:06]} Kf5 {[%clk
00:20:53]} {[%emt 00:00:05]} 41. Ra6 {[%clk 00:18:12]} {[%emt 00:00:12]} Kf4
{[%clk 00:21:13]} {[%emt 00:00:09]} 42. Rxa7 {[%clk 00:16:16]} {[%emt
00:02:26]} Ra2+ {[%clk 00:21:38]} {[%emt 00:00:05]} 43. Kf1 {[%clk 00:15:16]}
{[%emt 00:01:30]} Ra1+ {[%clk 00:20:49]} {[%emt 00:01:19]} 44. Ke2 {[%clk
00:15:39]} {[%emt 00:00:07]} Kg3 {[%clk 00:20:07]} {[%emt 00:01:11]} 45. b6
{[%clk 00:15:12]} {[%emt 00:00:59]} Kxg2 {[%clk 00:17:26]} {[%emt 00:03:10]} 46.
Ra5 {[%clk 00:14:45]} {[%emt 00:00:57]} 1-0

[Event "IV Elllobregat Open Chess Tmnt"]
[Site "Sant Boi de Llobregat, Spain"]
[Date "2023.11.30"]
[Round "1.41"]
[White "Pogorelov, Ruslan"]
[Black "Seo, Jung Min"]
[Result "0-1"]
[TimeControl "90min/40moves + 15min/end + 30sec from move 1"]
[WhiteFideId "14100363"]
[BlackFideId "1734687"]
[WhiteElo "2271"]
[BlackElo "2480"]

1. Nf3 {[%clk 01:30:54]} {[%emt 00:00:05]} d5 {[%clk 01:30:47]} {[%emt
00:00:13]} 2. d4 {[%clk 01:31:18]} {[%emt 00:00:06]} Nf6 {[%clk 01:30:27]}
{[%emt 00:00:52]} 3. c4 {[%clk 01:31:41]} {[%emt 00:00:07]} e6 {[%clk
01:30:54]} {[%emt 00:00:02]} 4. Nc3 {[%clk 01:31:55]} {[%emt 00:00:15]} Nbd7
{[%clk 01:31:18]} {[%emt 00:00:08]} 5. cxd5 {[%clk 01:31:59]} {[%emt 00:00:25]}
exd5 {[%clk 01:31:29]} {[%emt 00:00:19]} 6. Bf4 {[%clk 01:32:09]} {[%emt
00:00:20]} c6 {[%clk 01:29:45]} {[%emt 00:02:15]} 7. Qc2 {[%clk 01:30:22]}
{[%emt 00:02:16]} Nh5 {[%clk 01:24:33]} {[%emt 00:05:42]} 8. Bg3 {[%clk
01:30:19]} {[%emt 00:00:33]} Nxg3 {[%clk 01:24:12]} {[%emt 00:00:52]} 9. hxg3
{[%clk 01:30:37]} {[%emt 00:00:11]} Nf6 {[%clk 01:24:11]} {[%emt 00:00:31]} 10.
e3 {[%clk 01:30:47]} {[%emt 00:00:19]} Bd6 {[%clk 01:24:31]} {[%emt 00:00:12]}
11. Bd3 {[%clk 01:31:04]} {[%emt 00:00:12]} g6 {[%clk 01:17:35]} {[%emt
00:07:26]} 12. O-O-O {[%clk 01:31:18]} {[%emt 00:00:15]} Be6 {[%clk 01:16:27]}
{[%emt 00:01:39]} 13. Ng5 {[%clk 01:26:22]} {[%emt 00:05:25]} Qe7 {[%clk
01:16:22]} {[%emt 00:00:37]} 14. Kb1 {[%clk 01:02:45]} {[%emt 00:24:06]} O-O-O
{[%clk 01:15:18]} {[%emt 00:01:35]} 15. e4 {[%clk 00:59:15]} {[%emt 00:03:59]}
dxe4 {[%clk 01:15:19]} {[%emt 00:00:29]} 16. Ngxe4 {[%clk 00:59:16]} {[%emt
00:00:29]} Bc7 {[%clk 01:07:14]} {[%emt 00:08:35]} 17. Qa4 {[%emt 00:01:37]}
Bb6 {[%clk 01:06:37]} {[%emt 00:00:55]} 18. Bc2 {[%clk 00:57:47]} {[%emt
00:01:04]} Nd5 {[%clk 00:58:25]} {[%emt 00:08:42]} 19. a3 {[%clk 00:53:38]}
{[%emt 00:04:38]} Kb8 {[%clk 00:52:52]} {[%emt 00:06:04]} 20. Nxd5 {[%clk
00:47:53]} {[%emt 00:06:14]} Rxd5 {[%clk 00:52:33]} {[%emt 00:00:50]} 21. Nc3
{[%clk 00:47:52]} {[%emt 00:00:31]} Rd7 {[%clk 00:44:37]} {[%emt 00:08:26]} 22.
Rd2 {[%emt 00:06:50]} Rhd8 {[%clk 00:40:29]} 23. Rhd1 {[%clk 00:46:01]} {[%emt
00:00:39]} h5 {[%clk 00:38:08]} {[%emt 00:02:51]} 24. Be4 {[%clk 00:42:31]}
{[%emt 00:03:59]} Qf6 {[%clk 00:37:01]} {[%emt 00:01:37]} 25. d5 {[%clk
00:39:50]} {[%emt 00:03:12]} Bg4 {[%clk 00:29:41]} {[%emt 00:07:50]} 26. f3
{[%clk 00:39:51]} {[%emt 00:00:29]} Bf5 {[%clk 00:30:09]} {[%emt 00:00:02]} 27.
Qc2 {[%clk 00:38:03]} {[%emt 00:02:17]} Qg5 {[%clk 00:26:35]} {[%emt 00:04:04]}
28. Bxf5 {[%clk 00:32:46]} {[%emt 00:05:48]} gxf5 {[%clk 00:26:30]} {[%emt
00:00:35]} 29. f4 {[%clk 00:32:09]} {[%emt 00:01:06]} Qxg3 {[%clk 00:26:46]}
{[%emt 00:00:15]} 30. Qxf5 {[%clk 00:30:34]} {[%emt 00:02:03]} Qg6 {[%clk
00:23:59]} {[%emt 00:03:18]} 31. Qxg6 {[%clk 00:29:29]} {[%emt 00:01:35]} fxg6
{[%clk 00:24:25]} {[%emt 00:00:06]} 32. g3 {[%clk 00:29:29]} {[%emt 00:00:29]}
cxd5 {[%clk 00:23:43]} {[%emt 00:01:12]} 33. Nxd5 {[%clk 00:28:59]} {[%emt
00:01:00]} Be3 {[%clk 00:23:34]} {[%emt 00:00:39]} 34. Rd3 {[%clk 00:29:16]}
{[%emt 00:00:13]} Bf2 {[%clk 00:23:28]} {[%emt 00:00:36]} 35. R1d2 {[%clk
00:27:11]} {[%emt 00:02:34]} Be1 {[%clk 00:22:47]} {[%emt 00:01:11]} 36. Rd1
{[%clk 00:27:16]} {[%emt 00:00:25]} Re8 {[%clk 00:20:31]} {[%emt 00:02:47]} 37.
Nf6 {[%clk 00:16:29]} {[%emt 00:11:17]} Rxd3 {[%clk 00:20:58]} {[%emt
00:00:03]} 38. Rxd3 {[%clk 00:16:44]} {[%emt 00:00:14]} Re6 {[%clk 00:20:43]}
{[%emt 00:00:45]} 39. Nd7+ {[%clk 00:10:15]} {[%emt 00:07:00]} Kc8 {[%clk
00:19:55]} {[%emt 00:01:18]} 40. Nf8 {[%clk 00:20:07]} {[%emt 00:05:37]} Rc6
{[%clk 00:31:40]} {[%emt 00:03:46]} 41. Re3 {[%clk 00:19:10]} {[%emt 00:01:26]}
Bf2 {[%clk 00:32:07]} {[%emt 00:00:04]} 42. Rf3 {[%clk 00:19:23]} {[%emt
00:00:17]} Bd4 {[%clk 00:30:20]} {[%emt 00:02:17]} 43. Nh7 {[%clk 00:18:51]}
{[%emt 00:01:01]} Rb6 {[%clk 00:30:08]} {[%emt 00:00:43]} 44. b3 {[%clk
00:17:03]} {[%emt 00:02:18]} Rc6 {[%clk 00:29:52]} {[%emt 00:00:47]} 45. Rd3
{[%clk 00:16:18]} {[%emt 00:01:14]} Bg7 {[%clk 00:30:08]} {[%emt 00:00:15]} 46.
Ng5 {[%clk 00:16:13]} {[%emt 00:00:34]} b5 {[%clk 00:28:29]} {[%emt 00:02:10]}
47. Nf3 {[%clk 00:10:16]} {[%emt 00:06:26]} Kc7 {[%clk 00:28:12]} {[%emt
00:00:48]} 48. Nh4 {[%clk 00:10:17]} {[%emt 00:00:27]} Bf8 {[%clk 00:27:15]}
{[%emt 00:01:28]} 49. a4 {[%clk 00:08:11]} {[%emt 00:02:36]} bxa4 {[%clk
00:20:49]} {[%emt 00:06:57]} 50. bxa4 {[%clk 00:08:32]} {[%emt 00:00:08]} Be7
{[%clk 00:21:12]} {[%emt 00:00:07]} 51. Kb2 {[%clk 00:07:18]} {[%emt 00:01:43]}
Kb6 {[%clk 00:19:01]} {[%emt 00:02:41]} 52. Kb3 {[%clk 00:07:13]} {[%emt
00:00:36]} a6 {[%clk 00:18:11]} {[%emt 00:01:21]} 53. Re3 {[%clk 00:04:22]}
{[%emt 00:03:20]} Bd8 {[%clk 00:15:16]} {[%emt 00:03:25]} 54. Rd3 {[%clk
00:04:25]} {[%emt 00:00:26]} Be7 {[%clk 00:14:08]} {[%emt 00:01:39]} 55. Re3
{[%clk 00:04:07]} {[%emt 00:00:48]} Bc5 {[%clk 00:12:56]} {[%emt 00:01:43]} 56.
Rd3 {[%clk 00:03:55]} {[%emt 00:00:41]} Re6 {[%clk 00:12:58]} {[%emt 00:00:28]}
57. f5 {[%clk 00:03:22]} {[%emt 00:01:02]} gxf5 {[%clk 00:13:26]} {[%emt
00:00:03]} 58. Nxf5 {[%clk 00:03:35]} {[%emt 00:00:16]} Re4 {[%clk 00:13:51]}
{[%emt 00:00:04]} 59. Ng7 {[%clk 00:03:03]} {[%emt 00:01:03]} Re5 {[%clk
00:13:49]} {[%emt 00:00:33]} 60. Rf3 {[%clk 00:03:07]} {[%emt 00:00:26]} Be7
{[%clk 00:12:14]} {[%emt 00:02:05]} 61. Nf5 {[%clk 00:03:12]} {[%emt 00:00:24]}
Bd8 {[%clk 00:12:11]} {[%emt 00:00:34]} 62. Nd6 {[%clk 00:02:19]} {[%emt
00:01:21]} Rd5 {[%clk 00:12:21]} {[%emt 00:00:22]} 63. Nf5 {[%clk 00:01:44]}
{[%emt 00:01:04]} Bc7 {[%clk 00:12:14]} {[%emt 00:00:37]} 64. Kc4 {[%clk
00:00:39]} {[%emt 00:01:36]} Rc5+ {[%clk 00:12:30]} {[%emt 00:00:14]} 65. Kb3
{[%clk 00:00:35]} {[%emt 00:00:34]} Re5 {[%clk 00:12:30]} {[%emt 00:00:31]} 66.
Ng7 {[%clk 00:00:51]} {[%emt 00:00:13]} Rg5 {[%clk 00:12:40]} {[%emt 00:00:20]}
67. Nf5 {[%clk 00:01:07]} {[%emt 00:00:13]} Rg4 {[%clk 00:12:54]} {[%emt
00:00:17]} 68. Rd3 {[%clk 00:01:08]} {[%emt 00:00:28]} Rg5 {[%clk 00:12:44]}
{[%emt 00:00:41]} 69. Rf3 {[%clk 00:01:37]} {[%emt 00:00:01]} Kc6 {[%clk
00:13:01]} {[%emt 00:00:14]} 70. Rc3+ {[%clk 00:01:23]} {[%emt 00:00:43]} Kd7
{[%clk 00:13:21]} {[%emt 00:00:10]} 71. Rd3+ {[%clk 00:01:29]} {[%emt
00:00:24]} Ke6 {[%clk 00:13:30]} {[%emt 00:00:21]} 72. Nd4+ {[%clk 00:01:22]}
{[%emt 00:00:35]} Ke5 {[%clk 00:10:56]} {[%emt 00:03:06]} 73. Kc4 {[%clk
00:00:38]} {[%emt 00:01:15]} Ke4 {[%clk 00:11:21]} {[%emt 00:00:04]} 74. Rd2
{[%clk 00:00:58]} {[%emt 00:00:10]} Rxg3 {[%clk 00:11:34]} {[%emt 00:00:18]} 75.
Re2 {[%clk 00:01:14]} {[%emt 00:00:13]} Re3 {[%clk 00:12:01]} {[%emt 00:00:03]}
76. Rg2 {[%clk 00:01:20]} {[%emt 00:00:23]} Be5 {[%clk 00:12:01]} {[%emt
00:00:31]} 77. Ne6 {[%clk 00:01:44]} {[%emt 00:00:06]} Rc3+ {[%clk 00:11:35]}
{[%emt 00:00:56]} 78. Kb4 {[%clk 00:02:12]} {[%emt 00:00:02]} Rg3 {[%clk
00:10:05]} {[%emt 00:02:00]} 79. Nc5 {[%clk 00:02:06]} {[%emt 00:00:36]} Ke3
{[%clk 00:09:35]} {[%emt 00:00:58]} 80. Rc2 {[%clk 00:02:07]} {[%emt 00:00:29]}
Bd6 {[%clk 00:06:31]} {[%emt 00:03:36]} 81. Kc4 {[%clk 00:01:56]} {[%emt
00:00:41]} Rg4+ {[%clk 00:06:57]} {[%emt 00:00:05]} 82. Kb3 {[%clk 00:01:57]}
{[%emt 00:00:28]} a5 {[%clk 00:06:56]} {[%emt 00:00:31]} 83. Rc3 {[%clk
00:02:02]} {[%emt 00:00:25]} Ke2 {[%clk 00:07:22]} {[%emt 00:00:03]} 84. Rc2+
{[%clk 00:01:48]} {[%emt 00:00:45]} Kf3 {[%clk 00:07:40]} {[%emt 00:00:10]} 85.
Rc3 {[%clk 00:01:54]} {[%emt 00:00:25]} Kg2 {[%clk 00:07:59]} {[%emt 00:00:11]}
86. Rc2+ {[%clk 00:01:59]} {[%emt 00:00:26]} Kh3 {[%clk 00:08:22]} {[%emt
00:00:06]} 87. Nd3 {[%clk 00:02:11]} {[%emt 00:00:18]} Rd4 {[%clk 00:08:26]}
{[%emt 00:00:27]} 88. Rc3 {[%clk 00:01:58]} {[%emt 00:00:42]} Kg4 {[%clk
00:08:08]} {[%emt 00:00:49]} 89. Nf2+ {[%clk 00:02:19]} {[%emt 00:00:08]} Kf5
{[%clk 00:08:33]} {[%emt 00:00:06]} 90. Rc6 {[%clk 00:00:44]} {[%emt 00:02:05]}
Rd2 {[%clk 00:07:55]} {[%emt 00:01:08]} 91. Nh3 {[%clk 00:00:52]} {[%emt
00:00:23]} Bb4 {[%clk 00:08:03]} {[%emt 00:00:22]} 92. Ng1 {[%clk 00:01:04]}
{[%emt 00:00:16]} Rg2 {[%clk 00:08:18]} {[%emt 00:00:16]} 93. Rh6 {[%clk
00:00:47]} {[%emt 00:00:47]} Rxg1 {[%clk 00:08:32]} {[%emt 00:00:16]} 94. Rxh5+
{[%clk 00:01:12]} {[%emt 00:00:05]} Rg5 {[%clk 00:08:54]} {[%emt 00:00:08]} 0-1